[Event "Titled Tuesday Blitz January 31 Late 2023"]
[White "Boros, Denes"]
[Black "SilverCityIndigo"]
[WhiteFideId "722340"]
[WhiteElo "2406"]
[BlackElo "2443"]
[Result "1-0"]
[Round "01"]
[TimeControl "180+2"]
[Date "2023.01.31"]
[WhiteClock "0:01:21"]
[BlackClock "0:00:25"]

1. e4 {[%clk 0:02:57]}  c5 {[%clk 0:03:00]} 2. b3 {[%clk 0:02:56]}  Nf6 {[%clk 0:02:59]} 3. Nc3 {[%clk 0:02:56]}  d5 {[%clk 0:02:56]} 4. exd5 {[%clk 0:02:55]}  Nxd5 {[%clk 0:02:57]} 5. Bc4 {[%clk 0:02:53]}  Nxc3 {[%clk 0:02:54]} 6. Qf3 {[%clk 0:02:53]}  e6 {[%clk 0:02:52]} 7. dxc3 {[%clk 0:02:53]}  Be7 {[%clk 0:02:50]} 8. Bf4 {[%clk 0:02:44]}  O-O {[%clk 0:02:47]} 9. Ne2 {[%clk 0:02:43]}  Nc6 {[%clk 0:02:45]} 10. O-O {[%clk 0:02:43]}  e5 {[%clk 0:02:41]} 11. Be3 {[%clk 0:02:41]}  Qc7 {[%clk 0:02:35]} 12. Ng3 {[%clk 0:02:40]}  Be6 {[%clk 0:01:58]} 13. Bxe6 {[%clk 0:02:37]}  fxe6 {[%clk 0:01:58]} 14. Qg4 {[%clk 0:02:37]}  Rf6 {[%clk 0:01:57]} 15. Ne4 {[%clk 0:02:30]}  Rg6 {[%clk 0:01:57]} 16. Qh3 {[%clk 0:02:30]}  b6 {[%clk 0:01:38]} 17. Rad1 {[%clk 0:02:30]}  Rf8 {[%clk 0:01:33]} 18. Rd3 {[%clk 0:02:27]}  c4 {[%clk 0:01:33]} 19. Rd2 {[%clk 0:02:25]}  Qb7 {[%clk 0:01:21]} 20. f3 {[%clk 0:02:20]}  Qa6 {[%clk 0:01:21]} 21. a4 {[%clk 0:02:13]}  cxb3 {[%clk 0:01:21]} 22. cxb3 {[%clk 0:02:14]}  Na5 {[%clk 0:01:16]} 23. Rb1 {[%clk 0:02:12]}  Qb7 {[%clk 0:01:12]} 24. Kh1 {[%clk 0:02:08]}  Qc6 {[%clk 0:01:07]} 25. Rd3 {[%clk 0:02:05]}  Nxb3 {[%clk 0:01:02]} 26. Rbd1 {[%clk 0:01:57]}  Qxa4 {[%clk 0:00:51]} 27. Qh5 {[%clk 0:01:53]}  Nc5 {[%clk 0:00:43]} 28. Bxc5 {[%clk 0:01:51]}  Bxc5 {[%clk 0:00:38]} 29. Qxe5 {[%clk 0:01:33]}  Qa2 {[%clk 0:00:33]} 30. R3d2 {[%clk 0:01:28]}  Qc4 {[%clk 0:00:34]} 31. Qc7 {[%clk 0:01:23]}  h5 {[%clk 0:00:27]} 32. Rd8 {[%clk 0:01:22]}  h4 {[%clk 0:00:24]} 33. Rxf8+ {[%clk 0:01:22]}  Bxf8 {[%clk 0:00:25]} 34. Qxc4 {[%clk 0:01:21]} 1-0


[Site "https://www.chess.com"]

[Event "Titled Tuesday Blitz January 31 Late 2023"]
[White "Danielyan, Vahe"]
[Black "Paichadze, Luka"]
[WhiteFideId "13304828"]
[BlackFideId "13602934"]
[WhiteElo "2346"]
[BlackElo "2515"]
[Result "0-1"]
[Round "01"]
[TimeControl "180+2"]
[Date "2023.01.31"]
[WhiteClock "0:00:02"]
[BlackClock "0:00:06"]

1. e4 {[%clk 0:02:57]}  c6 {[%clk 0:03:00]} 2. d4 {[%clk 0:02:56]}  d5 {[%clk 0:03:00]} 3. exd5 {[%clk 0:02:56]}  cxd5 {[%clk 0:03:00]} 4. Bd3 {[%clk 0:02:56]}  Nc6 {[%clk 0:03:00]} 5. c3 {[%clk 0:02:57]}  Nf6 {[%clk 0:02:59]} 6. Bf4 {[%clk 0:02:54]}  g6 {[%clk 0:02:57]} 7. h3 {[%clk 0:02:47]}  Bf5 {[%clk 0:02:57]} 8. Be2 {[%clk 0:02:46]}  Bg7 {[%clk 0:02:55]} 9. Nf3 {[%clk 0:02:47]}  O-O {[%clk 0:02:54]} 10. O-O {[%clk 0:02:46]}  Re8 {[%clk 0:02:51]} 11. Nbd2 {[%clk 0:02:45]}  a6 {[%clk 0:02:49]} 12. Re1 {[%clk 0:02:45]}  h6 {[%clk 0:02:36]} 13. Nb3 {[%clk 0:02:43]}  g5 {[%clk 0:02:35]} 14. Bh2 {[%clk 0:02:42]}  Nd7 {[%clk 0:02:29]} 15. Qd2 {[%clk 0:02:40]}  e6 {[%clk 0:02:26]} 16. Rad1 {[%clk 0:02:39]}  Na5 {[%clk 0:02:23]} 17. Nxa5 {[%clk 0:02:37]}  Qxa5 {[%clk 0:02:24]} 18. a3 {[%clk 0:02:38]}  Be4 {[%clk 0:02:08]} 19. Qe3 {[%clk 0:02:14]}  Qb6 {[%clk 0:02:04]} 20. b4 {[%clk 0:02:08]}  f5 {[%clk 0:01:57]} 21. Nd2 {[%clk 0:02:08]}  f4 {[%clk 0:01:56]} 22. Bxf4 {[%clk 0:02:01]}  gxf4 {[%clk 0:01:57]} 23. Qxf4 {[%clk 0:02:02]}  Rf8 {[%clk 0:01:48]} 24. Qg3 {[%clk 0:02:00]}  Bf5 {[%clk 0:01:46]} 25. Bg4 {[%clk 0:01:52]}  Rae8 {[%clk 0:01:37]} 26. Nf3 {[%clk 0:01:51]}  Bxg4 {[%clk 0:01:29]} 27. hxg4 {[%clk 0:01:51]}  Nf6 {[%clk 0:01:26]} 28. Ne5 {[%clk 0:01:51]}  Ne4 {[%clk 0:01:15]} 29. Rxe4 {[%clk 0:01:50]}  dxe4 {[%clk 0:01:16]} 30. Nd7 {[%clk 0:01:51]}  Qc6 {[%clk 0:01:15]} 31. Nxf8 {[%clk 0:01:51]}  Rxf8 {[%clk 0:01:16]} 32. Re1 {[%clk 0:01:46]}  Rc8 {[%clk 0:01:05]} 33. Re3 {[%clk 0:01:44]}  Qd5 {[%clk 0:01:03]} 34. Qf4 {[%clk 0:01:41]}  Rf8 {[%clk 0:00:54]} 35. Qxe4 {[%clk 0:01:40]}  Qxe4 {[%clk 0:00:54]} 36. Rxe4 {[%clk 0:01:41]}  Kf7 {[%clk 0:00:54]} 37. Kf1 {[%clk 0:01:34]}  Rc8 {[%clk 0:00:54]} 38. Re3 {[%clk 0:01:34]}  b5 {[%clk 0:00:46]} 39. Ke2 {[%clk 0:01:34]}  Rd8 {[%clk 0:00:40]} 40. f4 {[%clk 0:01:26]}  Rd5 {[%clk 0:00:36]} 41. Rh3 {[%clk 0:01:23]}  Kg6 {[%clk 0:00:33]} 42. Kd3 {[%clk 0:01:21]}  Bf8 {[%clk 0:00:28]} 43. Re3 {[%clk 0:01:14]}  Kf7 {[%clk 0:00:28]} 44. Re1 {[%clk 0:01:06]}  Bd6 {[%clk 0:00:26]} 45. g3 {[%clk 0:01:06]}  h5 {[%clk 0:00:25]} 46. g5 {[%clk 0:00:59]}  Bf8 {[%clk 0:00:23]} 47. Rh1 {[%clk 0:00:57]}  Kg6 {[%clk 0:00:24]} 48. a4 {[%clk 0:00:52]}  Bg7 {[%clk 0:00:20]} 49. axb5 {[%clk 0:00:49]}  axb5 {[%clk 0:00:21]} 50. Ra1 {[%clk 0:00:41]}  Rd7 {[%clk 0:00:17]} 51. Ra6 {[%clk 0:00:41]}  Kf5 {[%clk 0:00:16]} 52. Rb6 {[%clk 0:00:26]}  Re7 {[%clk 0:00:16]} 53. Rxb5+ {[%clk 0:00:13]}  Kg4 {[%clk 0:00:16]} 54. Ke4 {[%clk 0:00:11]}  Kxg3 {[%clk 0:00:16]} 55. g6 {[%clk 0:00:12]}  h4 {[%clk 0:00:12]} 56. Rg5+ {[%clk 0:00:12]}  Kh2 {[%clk 0:00:12]} 57. b5 {[%clk 0:00:07]}  Rc7 {[%clk 0:00:11]} 58. Rc5 {[%clk 0:00:05]}  Rb7 {[%clk 0:00:10]} 59. f5 {[%clk 0:00:04]}  exf5+ {[%clk 0:00:10]} 60. Kxf5 {[%clk 0:00:05]}  h3 {[%clk 0:00:11]} 61. Ke4 {[%clk 0:00:02]}  Kh1 {[%clk 0:00:09]} 62. c4 {[%clk 0:00:02]}  Re7+ {[%clk 0:00:07]} 63. Kd3 {[%clk 0:00:01]}  Bf6 {[%clk 0:00:07]} 64. Rh5 {[%clk 0:00:01]}  Kg2 {[%clk 0:00:06]} 65. c5 {[%clk 0:00:02]}  h2 {[%clk 0:00:06]} 66. d5 {[%clk 0:00:02]}  Re5 {[%clk 0:00:06]} 67. Rxh2+ {[%clk 0:00:02]}  Kxh2 {[%clk 0:00:07]} 68. Kc4 {[%clk 0:00:01]}  Re4+ {[%clk 0:00:07]} 69. Kb3 {[%clk 0:00:02]}  Bd4 {[%clk 0:00:06]} 0-1


[Site "https://www.chess.com"]

[Event "Titled Tuesday Blitz January 31 Late 2023"]
[White "Forgacs, Attila Jr."]
[Black "Fier, Alexandr"]
[WhiteFideId "773654"]
[BlackFideId "2107139"]
[WhiteElo "2264"]
[BlackElo "2589"]
[Result "0-1"]
[Round "01"]
[TimeControl "180+2"]
[Date "2023.01.31"]
[WhiteClock "0:01:09"]
[BlackClock "0:02:24"]

1. e4 {[%clk 0:03:00]}  c5 {[%clk 0:02:52]} 2. Nf3 {[%clk 0:03:00]}  a6 {[%clk 0:02:52]} 3. c4 {[%clk 0:03:00]}  Nc6 {[%clk 0:02:52]} 4. Nc3 {[%clk 0:02:57]}  e5 {[%clk 0:02:52]} 5. d3 {[%clk 0:02:52]}  g6 {[%clk 0:02:52]} 6. Be2 {[%clk 0:02:52]}  Bg7 {[%clk 0:02:53]} 7. O-O {[%clk 0:02:52]}  Nge7 {[%clk 0:02:53]} 8. Nd5 {[%clk 0:02:49]}  O-O {[%clk 0:02:53]} 9. Be3 {[%clk 0:02:48]}  d6 {[%clk 0:02:53]} 10. h3 {[%clk 0:02:48]}  b5 {[%clk 0:02:54]} 11. Nh2 {[%clk 0:02:45]}  Rb8 {[%clk 0:02:52]} 12. Qd2 {[%clk 0:02:43]}  f5 {[%clk 0:02:50]} 13. f3 {[%clk 0:02:35]}  f4 {[%clk 0:02:49]} 14. Bf2 {[%clk 0:02:35]}  g5 {[%clk 0:02:50]} 15. a3 {[%clk 0:02:27]}  Ng6 {[%clk 0:02:47]} 16. Rab1 {[%clk 0:02:24]}  b4 {[%clk 0:02:46]} 17. axb4 {[%clk 0:02:22]}  Nxb4 {[%clk 0:02:46]} 18. Nxb4 {[%clk 0:02:21]}  Rxb4 {[%clk 0:02:47]} 19. Qd1 {[%clk 0:02:13]}  h5 {[%clk 0:02:46]} 20. Be1 {[%clk 0:02:12]}  Rb6 {[%clk 0:02:42]} 21. b4 {[%clk 0:02:11]}  cxb4 {[%clk 0:02:42]} 22. Rxb4 {[%clk 0:02:09]}  Rxb4 {[%clk 0:02:42]} 23. Bxb4 {[%clk 0:02:09]}  Qb6+ {[%clk 0:02:42]} 24. c5 {[%clk 0:01:38]}  Qxb4 {[%clk 0:02:40]} 25. cxd6 {[%clk 0:01:39]}  Qxd6 {[%clk 0:02:40]} 26. Qb3+ {[%clk 0:01:35]}  Be6 {[%clk 0:02:40]} 27. Qa4 {[%clk 0:01:31]}  Qd4+ {[%clk 0:02:39]} 28. Qxd4 {[%clk 0:01:31]}  exd4 {[%clk 0:02:40]} 29. Ra1 {[%clk 0:01:31]}  Ra8 {[%clk 0:02:39]} 30. Nf1 {[%clk 0:01:30]}  a5 {[%clk 0:02:39]} 31. Nd2 {[%clk 0:01:31]}  a4 {[%clk 0:02:40]} 32. Bd1 {[%clk 0:01:30]}  a3 {[%clk 0:02:40]} 33. Kf2 {[%clk 0:01:25]}  Ne5 {[%clk 0:02:39]} 34. Bc2 {[%clk 0:01:23]}  Bf8 {[%clk 0:02:40]} 35. Ke2 {[%clk 0:01:22]}  Bb4 {[%clk 0:02:40]} 36. Nb3 {[%clk 0:01:21]}  a2 {[%clk 0:02:38]} 37. Nxd4 {[%clk 0:01:20]}  Bc3 {[%clk 0:02:38]} 38. Nb3 {[%clk 0:01:15]}  Bxa1 {[%clk 0:02:36]} 39. Nxa1 {[%clk 0:01:16]}  Nc6 {[%clk 0:02:36]} 40. Kd2 {[%clk 0:01:14]}  Nd4 {[%clk 0:02:35]} 41. Bd1 {[%clk 0:01:14]}  Rb8 {[%clk 0:02:30]} 42. Kc3 {[%clk 0:01:06]}  Rb1 {[%clk 0:02:28]} 43. Kxd4 {[%clk 0:01:04]}  Rxd1 {[%clk 0:02:28]} 44. Nc2 {[%clk 0:01:03]}  a1=Q+ {[%clk 0:02:27]} 45. Nxa1 {[%clk 0:01:04]}  Rxa1 {[%clk 0:02:28]} 46. Ke5 {[%clk 0:01:05]}  Kf7 {[%clk 0:02:28]} 47. d4 {[%clk 0:01:06]}  Ra2 {[%clk 0:02:27]} 48. d5 {[%clk 0:01:06]}  Bxd5 {[%clk 0:02:28]} 49. exd5 {[%clk 0:01:07]}  Rxg2 {[%clk 0:02:28]} 50. Kf5 {[%clk 0:01:07]}  g4 {[%clk 0:02:28]} 51. hxg4 {[%clk 0:01:05]}  h4 {[%clk 0:02:28]} 52. Kxf4 {[%clk 0:01:05]}  h3 {[%clk 0:02:28]} 53. g5 {[%clk 0:01:06]}  h2 {[%clk 0:02:27]} 54. Kf5 {[%clk 0:01:07]}  h1=Q {[%clk 0:02:28]} 55. f4 {[%clk 0:01:07]}  Qh3+ {[%clk 0:02:27]} 56. Ke5 {[%clk 0:01:07]}  Re2+ {[%clk 0:02:27]} 57. Kd6 {[%clk 0:01:08]}  Qa3+ {[%clk 0:02:25]} 58. Kc6 {[%clk 0:01:08]}  Rc2+ {[%clk 0:02:24]} 59. Kd7 {[%clk 0:01:09]}  Qe7# {[%clk 0:02:24]} 0-1


[Site "https://www.chess.com"]

[Event "Titled Tuesday Blitz January 31 Late 2023"]
[White "Tactrics"]
[Black "Dzierzak, Radoslaw"]
[BlackFideId "1161407"]
[WhiteElo "2794"]
[BlackElo "2220"]
[Result "1-0"]
[Round "01"]
[TimeControl "180+2"]
[Date "2023.01.31"]
[WhiteClock "0:00:33"]
[BlackClock "0:00:20"]

1. e4 {[%clk 0:03:00]}  c6 {[%clk 0:03:00]} 2. Bc4 {[%clk 0:03:00]}  d5 {[%clk 0:03:00]} 3. Bb3 {[%clk 0:03:01]}  dxe4 {[%clk 0:02:54]} 4. Qh5 {[%clk 0:03:00]}  g6 {[%clk 0:02:51]} 5. Qh4 {[%clk 0:03:00]}  Nf6 {[%clk 0:02:51]} 6. Nc3 {[%clk 0:02:59]}  Bf5 {[%clk 0:02:46]} 7. f3 {[%clk 0:02:58]}  exf3 {[%clk 0:02:46]} 8. Nxf3 {[%clk 0:02:59]}  Bg7 {[%clk 0:02:45]} 9. d4 {[%clk 0:02:57]}  h6 {[%clk 0:02:42]} 10. O-O {[%clk 0:02:54]}  g5 {[%clk 0:02:42]} 11. Qe1 {[%clk 0:02:51]}  Bg6 {[%clk 0:02:41]} 12. Kh1 {[%clk 0:02:45]}  Nbd7 {[%clk 0:02:36]} 13. Ne5 {[%clk 0:02:40]}  Nxe5 {[%clk 0:02:34]} 14. dxe5 {[%clk 0:02:41]}  Ng4 {[%clk 0:02:34]} 15. e6 {[%clk 0:02:32]}  f5 {[%clk 0:02:33]} 16. h3 {[%clk 0:02:26]}  h5 {[%clk 0:02:19]} 17. Bxg5 {[%clk 0:02:25]}  Qc7 {[%clk 0:02:14]} 18. Bf4 {[%clk 0:02:22]}  Be5 {[%clk 0:02:14]} 19. Bxe5 {[%clk 0:02:19]}  Nxe5 {[%clk 0:02:15]} 20. Qg3 {[%clk 0:02:16]}  O-O-O {[%clk 0:02:14]} 21. Rae1 {[%clk 0:02:14]}  f4 {[%clk 0:02:09]} 22. Qg5 {[%clk 0:02:06]}  f3 {[%clk 0:02:03]} 23. gxf3 {[%clk 0:01:52]}  Nxf3 {[%clk 0:01:49]} 24. Rxf3 {[%clk 0:01:51]}  Rhg8 {[%clk 0:01:49]} 25. Qe5 {[%clk 0:01:47]}  Qb6 {[%clk 0:01:47]} 26. Qe3 {[%clk 0:01:44]}  Qa5 {[%clk 0:01:44]} 27. Rg3 {[%clk 0:01:41]}  h4 {[%clk 0:01:39]} 28. Rg5 {[%clk 0:01:37]}  Bf5 {[%clk 0:01:16]} 29. Reg1 {[%clk 0:01:30]}  Rxg5 {[%clk 0:00:44]} 30. Rxg5 {[%clk 0:01:30]}  Rf8 {[%clk 0:00:40]} 31. Qg1 {[%clk 0:01:17]}  Qe5 {[%clk 0:00:34]} 32. Rg8 {[%clk 0:01:10]}  Be4+ {[%clk 0:00:33]} 33. Nxe4 {[%clk 0:01:06]}  Qxe4+ {[%clk 0:00:34]} 34. Qg2 {[%clk 0:00:47]}  Qe1+ {[%clk 0:00:28]} 35. Qg1 {[%clk 0:00:46]}  Qe4+ {[%clk 0:00:28]} 36. Rg2 {[%clk 0:00:46]}  Rg8 {[%clk 0:00:27]} 37. Qf2 {[%clk 0:00:41]}  Rg3 {[%clk 0:00:24]} 38. Kg1 {[%clk 0:00:37]}  Rxg2+ {[%clk 0:00:20]} 39. Qxg2 {[%clk 0:00:35]}  Qe1+ {[%clk 0:00:20]} 40. Qf1 {[%clk 0:00:35]}  Qg3+ {[%clk 0:00:20]} 41. Kh1 {[%clk 0:00:36]}  Qe3 {[%clk 0:00:20]} 42. Qf8+ {[%clk 0:00:35]}  Kc7 {[%clk 0:00:20]} 43. Qxe7+ {[%clk 0:00:35]}  Kb6 {[%clk 0:00:21]} 44. Qb4+ {[%clk 0:00:35]}  Kc7 {[%clk 0:00:21]} 45. Qxh4 {[%clk 0:00:32]}  Qf3+ {[%clk 0:00:19]} 46. Kg1 {[%clk 0:00:30]}  Qd1+ {[%clk 0:00:20]} 47. Kg2 {[%clk 0:00:30]}  Qe2+ {[%clk 0:00:20]} 48. Qf2 {[%clk 0:00:30]}  Qe4+ {[%clk 0:00:20]} 49. Qf3 {[%clk 0:00:31]}  Qg6+ {[%clk 0:00:20]} 50. Qg3+ {[%clk 0:00:32]}  Qxg3+ {[%clk 0:00:20]} 51. Kxg3 {[%clk 0:00:33]} 1-0


[Site "https://www.chess.com"]

[Event "Titled Tuesday Blitz January 31 Late 2023"]
[White "Necromon"]
[Black "Salimova, Nurgyul"]
[BlackFideId "2915138"]
[WhiteElo "2420"]
[BlackElo "2391"]
[Result "0-1"]
[Round "01"]
[TimeControl "180+2"]
[Date "2023.01.31"]
[WhiteClock "0:00:08"]
[BlackClock "0:00:06"]

1. Nf3 {[%clk 0:02:58]}  d5 {[%clk 0:02:59]} 2. g3 {[%clk 0:02:58]}  Nf6 {[%clk 0:02:58]} 3. c4 {[%clk 0:02:58]}  c6 {[%clk 0:02:54]} 4. cxd5 {[%clk 0:02:54]}  cxd5 {[%clk 0:02:53]} 5. Bg2 {[%clk 0:02:55]}  Nc6 {[%clk 0:02:52]} 6. d4 {[%clk 0:02:52]}  Bf5 {[%clk 0:02:50]} 7. Nc3 {[%clk 0:02:43]}  e6 {[%clk 0:02:48]} 8. O-O {[%clk 0:02:41]}  Be7 {[%clk 0:02:42]} 9. a3 {[%clk 0:02:38]}  h6 {[%clk 0:02:39]} 10. b4 {[%clk 0:02:35]}  Rc8 {[%clk 0:02:34]} 11. Qb3 {[%clk 0:02:32]}  O-O {[%clk 0:02:33]} 12. Bf4 {[%clk 0:02:14]}  Ne4 {[%clk 0:02:23]} 13. Rfc1 {[%clk 0:02:06]}  Bf6 {[%clk 0:02:21]} 14. Be3 {[%clk 0:02:05]}  Bg4 {[%clk 0:02:08]} 15. Nxe4 {[%clk 0:01:09]}  dxe4 {[%clk 0:02:08]} 16. Ne5 {[%clk 0:01:10]}  Nxe5 {[%clk 0:01:40]} 17. dxe5 {[%clk 0:01:04]}  Bxe5 {[%clk 0:01:41]} 18. Rxc8 {[%clk 0:01:04]}  Qxc8 {[%clk 0:01:41]} 19. Rc1 {[%clk 0:01:04]}  Qb8 {[%clk 0:01:27]} 20. Qc2 {[%clk 0:00:46]}  f5 {[%clk 0:01:20]} 21. f4 {[%clk 0:00:38]}  Bf6 {[%clk 0:01:09]} 22. Qc4 {[%clk 0:00:30]}  Re8 {[%clk 0:00:57]} 23. h3 {[%clk 0:00:28]}  Bh5 {[%clk 0:00:57]} 24. Kf2 {[%clk 0:00:24]}  Bf7 {[%clk 0:00:56]} 25. Qc7 {[%clk 0:00:24]}  Qa8 {[%clk 0:00:51]} 26. Rd1 {[%clk 0:00:19]}  Rc8 {[%clk 0:00:47]} 27. Qa5 {[%clk 0:00:19]}  b6 {[%clk 0:00:42]} 28. Qa6 {[%clk 0:00:18]}  e5 {[%clk 0:00:37]} 29. Rd7 {[%clk 0:00:17]}  exf4 {[%clk 0:00:25]} 30. gxf4 {[%clk 0:00:16]}  Qc6 {[%clk 0:00:19]} 31. Qxa7 {[%clk 0:00:15]}  Be6 {[%clk 0:00:17]} 32. Rd1 {[%clk 0:00:16]}  Qc2 {[%clk 0:00:15]} 33. Rc1 {[%clk 0:00:14]}  Bh4+ {[%clk 0:00:15]} 34. Kg1 {[%clk 0:00:14]}  Qxe2 {[%clk 0:00:13]} 35. Rxc8+ {[%clk 0:00:14]}  Bxc8 {[%clk 0:00:14]} 36. Qxb6 {[%clk 0:00:15]}  Qe1+ {[%clk 0:00:13]} 37. Bf1 {[%clk 0:00:14]}  Qg3+ {[%clk 0:00:11]} 38. Bg2 {[%clk 0:00:14]}  Qe1+ {[%clk 0:00:12]} 39. Bf1 {[%clk 0:00:14]}  Kh7 {[%clk 0:00:11]} 40. Bf2 {[%clk 0:00:13]}  Bxf2+ {[%clk 0:00:09]} 41. Qxf2 {[%clk 0:00:14]}  Qc3 {[%clk 0:00:10]} 42. Qc5 {[%clk 0:00:10]}  Qg3+ {[%clk 0:00:09]} 43. Kh1 {[%clk 0:00:09]}  Qf3+ {[%clk 0:00:07]} 44. Bg2 {[%clk 0:00:09]}  Qd1+ {[%clk 0:00:07]} 45. Kh2 {[%clk 0:00:09]}  Be6 {[%clk 0:00:03]} 46. Qe5 {[%clk 0:00:09]}  Bd7 {[%clk 0:00:04]} 47. b5 {[%clk 0:00:09]}  Qd3 {[%clk 0:00:03]} 48. b6 {[%clk 0:00:08]}  Qb3 {[%clk 0:00:02]} 49. Bxe4 {[%clk 0:00:08]}  fxe4 {[%clk 0:00:01]} 50. Qxe4+ {[%clk 0:00:08]}  Kh8 {[%clk 0:00:01]} 51. Qa8+ {[%clk 0:00:09]}  Kh7 {[%clk 0:00:02]} 52. Qe4+ {[%clk 0:00:09]}  Kg8 {[%clk 0:00:01]} 53. Qa8+ {[%clk 0:00:09]}  Kf7 {[%clk 0:00:02]} 54. b7 {[%clk 0:00:09]}  Qb2+ {[%clk 0:00:03]} 55. Kg3 {[%clk 0:00:09]}  Qc3+ {[%clk 0:00:03]} 56. Kf2 {[%clk 0:00:09]}  Qd2+ {[%clk 0:00:03]} 57. Kg3 {[%clk 0:00:08]}  Qd3+ {[%clk 0:00:03]} 58. Kf2 {[%clk 0:00:08]}  Qd4+ {[%clk 0:00:03]} 59. Ke1 {[%clk 0:00:08]}  Qc3+ {[%clk 0:00:04]} 60. Ke2 {[%clk 0:00:08]}  Qc4+ {[%clk 0:00:04]} 61. Ke3 {[%clk 0:00:08]}  Qc5+ {[%clk 0:00:05]} 62. Kd2 {[%clk 0:00:08]}  Qd4+ {[%clk 0:00:05]} 63. Kc2 {[%clk 0:00:08]}  Ba4+ {[%clk 0:00:05]} 64. Kc1 {[%clk 0:00:08]}  Qc3+ {[%clk 0:00:05]} 65. Kb1 {[%clk 0:00:08]}  Bc2+ {[%clk 0:00:06]} 0-1


[Site "https://www.chess.com"]

[Event "Titled Tuesday Blitz January 31 Late 2023"]
[White "Shubenkova, Veronika"]
[Black "Mikaelyan, Arman"]
[WhiteFideId "44124040"]
[BlackFideId "13304852"]
[WhiteElo "1960"]
[BlackElo "2523"]
[Result "1-0"]
[Round "01"]
[TimeControl "180+2"]
[Date "2023.01.31"]
[WhiteClock "0:00:44"]
[BlackClock "0:00:14"]

1. e4 {[%clk 0:02:51]}  c5 {[%clk 0:02:52]} 2. Nc3 {[%clk 0:02:51]}  a6 {[%clk 0:02:51]} 3. g3 {[%clk 0:02:51]}  g6 {[%clk 0:02:51]} 4. Bg2 {[%clk 0:02:51]}  Bg7 {[%clk 0:02:51]} 5. d3 {[%clk 0:02:52]}  Nc6 {[%clk 0:02:52]} 6. f4 {[%clk 0:02:52]}  d6 {[%clk 0:02:50]} 7. Nf3 {[%clk 0:02:52]}  Bg4 {[%clk 0:02:50]} 8. Be3 {[%clk 0:02:52]}  Nf6 {[%clk 0:02:47]} 9. O-O {[%clk 0:02:51]}  O-O {[%clk 0:02:46]} 10. Rb1 {[%clk 0:02:51]}  Nd7 {[%clk 0:02:45]} 11. Ne2 {[%clk 0:02:51]}  b5 {[%clk 0:02:42]} 12. h3 {[%clk 0:02:50]}  Bxf3 {[%clk 0:02:42]} 13. Bxf3 {[%clk 0:02:50]}  Qc7 {[%clk 0:02:39]} 14. Bg2 {[%clk 0:02:49]}  b4 {[%clk 0:02:38]} 15. g4 {[%clk 0:02:49]}  Rab8 {[%clk 0:02:32]} 16. Ng3 {[%clk 0:02:48]}  Qa5 {[%clk 0:02:31]} 17. h4 {[%clk 0:02:37]}  Qxa2 {[%clk 0:02:26]} 18. b3 {[%clk 0:02:32]}  Nd4 {[%clk 0:02:18]} 19. Rf2 {[%clk 0:02:29]}  Nb5 {[%clk 0:02:18]} 20. Qf1 {[%clk 0:02:17]}  Bd4 {[%clk 0:02:08]} 21. Bxd4 {[%clk 0:02:13]}  Nxd4 {[%clk 0:01:51]} 22. c3 {[%clk 0:02:11]}  Nc2 {[%clk 0:01:50]} 23. Rc1 {[%clk 0:02:08]}  bxc3 {[%clk 0:01:46]} 24. Rfxc2 {[%clk 0:02:08]}  Qxb3 {[%clk 0:01:45]} 25. Rxc3 {[%clk 0:02:08]}  Qa2 {[%clk 0:01:43]} 26. Qf2 {[%clk 0:02:06]}  Rb2 {[%clk 0:01:42]} 27. R3c2 {[%clk 0:02:06]}  Rxc2 {[%clk 0:01:42]} 28. Qxc2 {[%clk 0:02:04]}  Qa5 {[%clk 0:01:39]} 29. h5 {[%clk 0:02:03]}  Nf6 {[%clk 0:01:36]} 30. hxg6 {[%clk 0:02:02]}  hxg6 {[%clk 0:01:37]} 31. Bf3 {[%clk 0:02:01]}  Qb6 {[%clk 0:01:33]} 32. Qc4 {[%clk 0:01:57]}  e6 {[%clk 0:01:25]} 33. Kg2 {[%clk 0:01:51]}  Qb2+ {[%clk 0:01:20]} 34. Rc2 {[%clk 0:01:50]}  Qb1 {[%clk 0:01:17]} 35. Rc1 {[%clk 0:01:47]}  Qb2+ {[%clk 0:01:17]} 36. Qc2 {[%clk 0:01:47]}  Qb6 {[%clk 0:01:10]} 37. f5 {[%clk 0:01:47]}  Nd7 {[%clk 0:01:01]} 38. Qa2 {[%clk 0:01:42]}  c4 {[%clk 0:00:51]} 39. Qxc4 {[%clk 0:01:37]}  Ne5 {[%clk 0:00:50]} 40. Qc2 {[%clk 0:01:36]}  Qe3 {[%clk 0:00:50]} 41. Be2 {[%clk 0:01:27]}  Kg7 {[%clk 0:00:44]} 42. Rf1 {[%clk 0:01:18]}  Rb8 {[%clk 0:00:24]} 43. fxe6 {[%clk 0:01:10]}  Qd4 {[%clk 0:00:20]} 44. exf7 {[%clk 0:01:08]}  Rf8 {[%clk 0:00:19]} 45. Qc1 {[%clk 0:01:00]}  Rxf7 {[%clk 0:00:18]} 46. Rxf7+ {[%clk 0:00:59]}  Nxf7 {[%clk 0:00:19]} 47. Qa3 {[%clk 0:00:52]}  Qb6 {[%clk 0:00:17]} 48. Qc3+ {[%clk 0:00:52]}  Kg8 {[%clk 0:00:18]} 49. d4 {[%clk 0:00:51]}  Kg7 {[%clk 0:00:16]} 50. Bc4 {[%clk 0:00:50]}  Qc6 {[%clk 0:00:14]} 51. d5+ {[%clk 0:00:44]} 1-0


[Site "https://www.chess.com"]